fUST/lending_fUST_20240930
["ID","MTS","AMOUNT","RATE_DAILY","PERIOD"]
[339533629,1727681469005,-500.0,0.00014671,2]
[339533630,1727681469014,-500.0,0.00014671,2]
[339533631,1727681469023,-500.0,0.00014671,2]
[339533632,1727681469032,-500.0,0.00014671,2]
[339533633,1727681469041,-500.0,0.00014671,2]
[339533634,1727681469050,-500.0,0.00014671,2]
[339533635,1727681469060,-541.78,0.00014671,2]
[339533636,1727681469069,-500.0,0.00014671,2]
[339533637,1727681469079,-1567.28,0.00014671,2]
[339533638,1727681469088,-500.0,0.00014671,2]
[339533639,1727681469098,-500.0,0.00014671,2]
[339533640,1727681469107,-388.90580078,0.00014671,2]
[339533641,1727681469117,-500.0,0.00014671,2]
[339533642,1727681469127,-264.00210905,0.00014671,2]
[339533643,1727681469135,-500.0,0.00014671,2]
[339533644,1727681469145,-500.0,0.00014671,2]
[339533645,1727681469155,-500.0,0.00014671,2]
[339533646,1727681469164,-500.0,0.00014671,2]
[339533647,1727681469173,-500.0,0.00014671,2]
[339533648,1727681469182,-341.48666955,0.00014671,2]
[339533649,1727681469191,-500.0,0.00014671,2]
[339533650,1727681469200,-2355.39,0.00014671,2]
[339533651,1727681469210,-1759.74,0.00014671,2]
[339533652,1727681469219,-500.0,0.00014671,2]
[339533653,1727681469228,-500.0,0.00014671,2]
[339533654,1727681469238,-500.0,0.00014671,2]
[339533655,1727681469247,-505.04358217,0.00014671,2]
[339533656,1727681469256,-500.0,0.00014671,2]
[339533657,1727681469266,-500.0,0.00014671,2]
[339533658,1727681469275,-730.97,0.00014671,2]
[339533659,1727681469284,-500.0,0.00014671,2]
[339533660,1727681469293,-656.74,0.00014671,2]
[339533661,1727681469302,-500.0,0.00014671,2]
[339533662,1727681469311,-500.0,0.00014671,2]
[339533663,1727681469321,-500.0,0.00014671,2]
[339533664,1727681469330,-500.0,0.00014671,2]
[339533665,1727681469339,-500.0,0.00014671,2]
[339533666,1727681469348,-500.0,0.00014671,2]
[339533667,1727681469358,-553.96214591,0.00014671,2]
[339533668,1727681469367,-500.0,0.00014671,2]
[339533669,1727681469377,-504.42089867,0.00014671,2]
[339533670,1727681469386,-500.0,0.00014671,2]
[339533671,1727681469395,-504.55062437,0.00014671,2]
[339533672,1727681469405,-534.3,0.00014671,2]
[339533673,1727681469414,-500.0,0.00014671,2]
[339533674,1727681469423,-500.0,0.00014671,2]
[339533675,1727681469432,-500.0,0.00014671,2]
[339533676,1727681469441,-374.18736134,0.00014671,2]
[339533677,1727681469450,-500.0,0.00014671,2]
[339533678,1727681469459,-500.0,0.00014671,2]
[339533679,1727681469469,-500.0,0.00014671,2]
[339533680,1727681469478,-500.0,0.00014671,2]
[339533681,1727681469487,-500.0,0.00014671,2]
[339533682,1727681469496,-500.0,0.00014671,2]
[339533683,1727681469506,-428.22520136,0.00014671,2]
[339533684,1727681469516,-500.0,0.00014671,2]
[339533685,1727681469526,-500.0,0.00014671,2]
[339533686,1727681469534,-500.0,0.00014671,2]
[339533687,1727681469544,-500.0,0.00014671,2]
[339533688,1727681469553,-547.6,0.00014671,2]
[339533689,1727681469563,-500.0,0.00014671,2]
[339533690,1727681469572,-479.9996251,0.00014671,2]
[339533691,1727681469582,-500.0,0.00014671,2]
[339533692,1727681469592,-657.07,0.00014671,2]
[339533693,1727681469602,-500.0,0.00014671,2]
[339533694,1727681469611,-366.73316821,0.00014671,2]
[339533695,1727681469621,-500.0,0.00014671,2]
[339533696,1727681469631,-688.07,0.00014671,2]
[339533697,1727681469641,-500.0,0.00014671,2]
[339533698,1727681469650,-757.25,0.00014671,2]
[339533699,1727681469659,-500.0,0.00014671,2]
[339533700,1727681469669,-512.23701598,0.00014671,2]
[339533701,1727681469678,-500.0,0.00014671,2]
[339533702,1727681469687,-542.17,0.00014671,2]
[339533703,1727681469696,-895.7,0.00014671,2]
[339533704,1727681469705,-500.0,0.00014671,2]
[339533705,1727681469714,-500.0,0.00014671,2]
[339533706,1727681469723,-500.0,0.00014671,2]
[339533707,1727681469733,-500.0,0.00014671,2]
[339533708,1727681469743,-500.0,0.00014671,2]
[339533709,1727681469753,-500.0,0.00014671,2]
[339533710,1727681469762,-593.51017427,0.00014671,2]
[339533711,1727681469771,-500.0,0.00014671,2]
[339533712,1727681469780,-585.54,0.00014671,2]
[339533713,1727681469790,-1221.959871,0.00014671,2]
[339533714,1727681469800,-1221.959871,0.00014671,2]
[339533715,1727681469809,-500.0,0.00014671,2]
[339533716,1727681469819,-625.56,0.00014671,2]
[339533717,1727681469828,-500.0,0.00014671,2]
[339533718,1727681469837,-1584.19,0.00014671,2]
[339533719,1727681469846,-500.0,0.00014671,2]
[339533720,1727681469856,-500.0,0.00014671,2]
[339533721,1727681469865,-637.44,0.00014671,2]
[339533722,1727681469878,-500.0,0.00014671,2]
[339533723,1727681469887,-265.368698,0.00014671,2]
[339533724,1727681469896,-151.0,0.00014671,2]
[339533725,1727681469906,-151.0,0.00014671,2]
[339533726,1727681469915,-265.368698,0.00014671,2]
[339533727,1727681469927,-500.0,0.00014671,2]
[339533728,1727681469936,-500.0,0.00014671,2]
[339533729,1727681469946,-673.65,0.00014671,2]
[339533730,1727681469955,-310.0,0.00014671,2]
[339533731,1727681469964,-500.0,0.00014671,2]
[339533732,1727681469973,-310.0,0.00014671,2]
[339533733,1727681469982,-310.0,0.00014671,2]
[339533734,1727681469992,-310.0,0.00014671,2]
[339533735,1727681470002,-310.0,0.00014671,2]
[339533736,1727681470011,-310.0,0.00014671,2]
[339533737,1727681470021,-310.0,0.00014671,2]
[339533738,1727681470032,-310.0,0.00014671,2]
[339533739,1727681470042,-310.0,0.00014671,2]
[339533740,1727681470051,-310.0,0.00014671,2]
[339533741,1727681470061,-310.0,0.00014671,2]
[339533742,1727681470070,-310.0,0.00014671,2]
[339533743,1727681470081,-310.0,0.00014671,2]
[339533744,1727681470091,-500.0,0.00014671,2]
[339533745,1727681470100,-516.43,0.00014671,2]
[339533746,1727681470111,-310.0,0.00014671,2]
[339533747,1727681470120,-310.0,0.00014671,2]
[339533748,1727681470130,-310.0,0.00014671,2]
[339533749,1727681470139,-359.098242,0.00014671,2]
[339533750,1727681470149,-151.043465,0.00014671,2]
[339533751,1727681470158,-6604.674897,0.00014671,2]
[339533752,1727681470168,-562.33731516,0.00014671,2]
[339533753,1727681470177,-151.0,0.00014671,2]
[339533754,1727681470186,-6604.674897,0.00014671,2]
[339533755,1727681470196,-1265.9,0.00014671,2]
[339533756,1727681470205,-510.68,0.00014671,2]
[339533757,1727681470214,-500.0,0.00014671,2]
[339533758,1727681470223,-500.0,0.00014671,2]
[339533759,1727681470233,-151.0,0.00014671,2]
[339533760,1727681470242,-1872.45,0.00014671,2]
[339533761,1727681470251,-151.0,0.00014671,2]
[339533762,1727681470261,-500.0,0.00014671,2]
[339533763,1727681470270,-421.023992,0.00014671,2]
[339533764,1727681470279,-368.14011945,0.00014671,2]
[339533765,1727681470288,-510.79411968,0.00014671,2]
[339533766,1727681470297,-500.0,0.00014671,2]
[339533767,1727681470307,-500.0,0.00014671,2]
[339533768,1727681470317,-200.268253,0.00014671,2]
[339533769,1727681470326,-500.0,0.00014671,2]
[339533770,1727681470335,-500.0,0.00014671,2]
[339533771,1727681470345,-854.726034,0.00014671,2]
[339533772,1727681470354,-500.0,0.00014671,2]
[339533773,1727681470363,-500.0,0.00014671,2]
[339533774,1727681470373,-854.726034,0.00014671,2]
[339533775,1727681470382,-1050.2,0.00014671,2]
[339533776,1727681470391,-500.0,0.00014671,2]
[339533777,1727681470400,-151.0,0.00014671,2]
[339533778,1727681470410,-500.0,0.00014671,2]
[339533779,1727681470419,-578.15,0.00014671,2]
[339533780,1727681470428,-606.81,0.00014671,2]
[339533781,1727681470438,-563.51,0.00014671,2]
[339533782,1727681470447,-500.0,0.00014671,2]
[339533783,1727681470456,-500.0,0.00014671,2]
[339533784,1727681470465,-270.25630527,0.00014671,2]
[339533785,1727681470474,-500.0,0.00014671,2]
[339533786,1727681470483,-500.0,0.00014671,2]
[339533787,1727681470493,-741.09,0.00014671,2]
[339533788,1727681470502,-500.0,0.00014671,2]
[339533789,1727681470511,-500.0,0.00014671,2]
[339533790,1727681470521,-500.0,0.00014671,2]
[339533791,1727681470529,-157.560827,0.00014671,2]
[339533792,1727681470538,-151.0,0.00014671,2]
[339533793,1727681470548,-277.52677986,0.00014671,2]
[339533794,1727681470557,-500.0,0.00014671,2]
[339533795,1727681470566,-500.0,0.00014671,2]
[339533796,1727681470576,-157.560827,0.00014671,2]
[339533797,1727681470585,-500.0,0.00014671,2]
[339533798,1727681470594,-614.66,0.00014671,2]
[339533799,1727681470604,-1847.34,0.00014671,2]
[339533800,1727681470614,-151.0,0.00014671,2]
[339533801,1727681470623,-500.0,0.00014671,2]
[339533802,1727681470632,-364.34508069,0.00014671,2]
[339533803,1727681470642,-1787.443551,0.00014671,2]
[339533804,1727681470651,-2789.9,0.00014671,2]
[339533805,1727681470660,-1787.443551,0.00014671,2]
[339533806,1727681470670,-500.0,0.00014671,2]
[339533807,1727681470679,-500.0,0.00014671,2]
[339533808,1727681470689,-309.114078,0.00014671,2]
[339533809,1727681470698,-173.702784,0.00014671,2]
[339533810,1727681470707,-309.114078,0.00014671,2]
[339533811,1727681470716,-173.702784,0.00014671,2]
[339533812,1727681470726,-249.371505,0.00014671,2]
[339533813,1727681470735,-249.371505,0.00014671,2]
[339533814,1727681470744,-503.816295,0.00014671,2]
[339533815,1727681470753,-642.951546,0.00014671,2]
[339533816,1727681470762,-503.816295,0.00014671,2]
[339533817,1727681470771,-642.951546,0.00014671,2]
[339533818,1727681470780,-152.280393,0.00014671,2]
[339533819,1727681470790,-980.355677,0.00014671,2]
[339533820,1727681470799,-980.355677,0.00014671,2]
[339533821,1727681470808,-6290.281849,0.00014671,2]
[339533822,1727681470818,-6290.281849,0.00014671,2]
[339533823,1727681470828,-151.0,0.00014671,2]
[339533824,1727681470837,-151.0,0.00014671,2]
[339533825,1727681470846,-587.780477,0.00014671,2]
[339533826,1727681470856,-587.780477,0.00014671,2]
[339533827,1727681470865,-4978.46105,0.00014671,2]
[339533828,1727681470877,-4978.46105,0.00014671,2]
[339533829,1727681470887,-155.909178,0.00014672,2]
[339533830,1727681470897,-151.0,0.00014672,2]
[339533831,1727681470906,-151.0,0.00014672,2]
[339533832,1727681470915,-151.0,0.00014672,2]
[339533833,1727681470924,-151.0,0.00014672,2]
[339533834,1727681470934,-253.576248,0.00014672,2]
[339533835,1727681470943,-253.576248,0.00014672,2]
[339533836,1727681470952,-1000.0,0.00014672,2]
[339533837,1727681470962,-549.80656059,0.00014673,2]
[339533838,1727681470971,-500.0,0.00014673,2]
[339533839,1727681470980,-600.77844745,0.00014673,2]
[339533840,1727681470989,-150.0,0.00014673,2]
[339533841,1727681470999,-6000.0,0.00014674,2]
[339533842,1727681471008,-216.062877,0.00014674,2]
[339533843,1727681471019,-216.062877,0.00014674,2]
[339533844,1727681471028,-151.0,0.00014674,2]
[339533845,1727681471037,-165.156689,0.00014674,2]
[339533846,1727681471046,-151.0,0.00014674,2]
[339533847,1727681471055,-151.0,0.00014674,2]
[339533848,1727681471065,-151.0,0.00014674,2]
[339533849,1727681471074,-202.24371,0.00014674,2]
[339533850,1727681471084,-202.24371,0.00014674,2]
[339533851,1727681471094,-151.0,0.00014674,2]
[339533852,1727681471104,-151.0,0.00014674,2]
[339533853,1727681471113,-224.015403,0.00014674,2]
[339533854,1727681471123,-168.489331,0.00014674,2]
[339533855,1727681471133,-168.489331,0.00014674,2]
[339533856,1727681471142,-337.37465,0.00014674,2]
[339533857,1727681471153,-337.37465,0.00014674,2]
[339533858,1727681471163,-151.0,0.00014674,2]
[339533859,1727681471172,-151.0,0.00014674,2]
[339533860,1727681471182,-1876.049761,0.00014674,2]
[339533861,1727681471191,-1876.049761,0.00014674,2]
[339533862,1727681471200,-220.438095,0.00014674,2]
[339533863,1727681471210,-220.438095,0.00014674,2]
[339533864,1727681471220,-151.0,0.00014674,2]
[339533865,1727681471229,-151.0,0.00014674,2]
[339533866,1727681471240,-1062.484411,0.00014674,2]
[339533867,1727681471250,-151.0,0.00014674,2]
[339533868,1727681471260,-1062.484411,0.00014674,2]
[339533869,1727681471270,-151.0,0.00014674,2]
[339533870,1727681471280,-191.929704,0.00014674,2]
[339533871,1727681471289,-191.929704,0.00014674,2]
[339533872,1727681471299,-455.547621,0.00014674,2]
[339533873,1727681471309,-455.547621,0.00014674,2]
[339533874,1727681471319,-646.373244,0.00014674,2]
[339533875,1727681471328,-646.373244,0.00014674,2]
[339533876,1727681471337,-1548.957586,0.00014674,2]
[339533877,1727681471347,-151.0,0.00014674,2]
[339533878,1727681471358,-1548.957586,0.00014674,2]
[339533879,1727681471367,-151.0,0.00014674,2]
[339533880,1727681471376,-541.0,0.00014687,2]
[339533881,1727681471385,-500.0,0.000147,7]
[339533882,1727681471394,-500.0,0.000147,7]
[339533883,1727681471404,-500.0,0.000147,7]
[339533884,1727681471413,-500.0,0.000147,7]
[339533885,1727681471422,-500.0,0.000147,7]
[339533886,1727681471432,-151.0,0.000147,2]
[339533887,1727681471442,-150.112233,0.000147,2]
[339533888,1727681471451,-150.112233,0.000147,2]
[339533889,1727681471461,-150.112233,0.000147,2]
[339533890,1727681471471,-150.112233,0.000147,2]
[339533891,1727681471481,-151.062,0.000147,2]
[339533892,1727681471490,-151.0,0.00014701,2]
[339533893,1727681471499,-6500.0,0.00014701,2]
[339533894,1727681471508,-1218.649,0.00014713,2]
[339533895,1727681471674,-151.0,0.00014713,2]
[339533896,1727681471684,-1987.518951,0.00014713,2]
[339533897,1727681471693,-1987.518951,0.00014713,2]
[339533898,1727681471703,-177.746097,0.00014713,2]
[339533899,1727681471712,-177.746097,0.00014713,2]
[339533900,1727681471722,-713.05771,0.00014713,2]
[339533901,1727681471731,-713.05771,0.00014713,2]
[339533902,1727681471741,-322.567389,0.00014713,2]
[339533903,1727681471751,-322.567389,0.00014713,2]
[339533904,1727681471760,-151.0,0.00014713,2]
[339533905,1727681471769,-541.0,0.00014715,2]
[339533906,1727681471778,-1000.0,0.00014721,2]
[339533907,1727681471787,-1000.0,0.00014721,2]
[339533908,1727681471797,-1000.92319243,0.00014721,2]
[339533909,1727681471807,-1000.0,0.00014721,2]
[339533910,1727681471816,-890.93791744,0.00014729,2]
[339533911,1727681471827,-541.0,0.00014742,2]
[339533912,1727681471837,-150.061,0.00014755,2]
[339533913,1727681471846,-150.164,0.00014755,2]
[339533914,1727681471858,-541.0,0.0001477,2]
[339533915,1727681471867,-213.0,0.0001479,2]
[339533916,1727681471879,-541.0,0.00014797,2]
[339533917,1727681471888,-500.0,0.00014797,2]
[339533918,1727681471898,-150.112233,0.000148,2]
[339533919,1727681471908,-150.112233,0.000148,2]
[339533920,1727681471917,-150.112233,0.000148,2]
[339533921,1727681471927,-541.0,0.00014824,2]
[339533922,1727681471936,-541.0,0.00014852,2]
[339533923,1727681471946,-541.0,0.00014879,2]
[339533924,1727681471955,-1239.14614142,0.00014891,2]
[339533925,1727681471964,-150.112233,0.000149,2]
[339533926,1727681471974,-150.112233,0.000149,2]
[339533927,1727681471983,-150.112233,0.000149,2]
[339533928,1727681471993,-541.0,0.00014907,2]
[339533929,1727681472003,-988.18091068,0.00014921,2]
[339533930,1727681472013,-1000.0,0.00014921,2]
[339533931,1727681472023,-831.01890032,0.00014921,2]
[339533932,1727681472032,-1000.0,0.00014921,2]
[339533933,1727681472043,-1000.0,0.00014921,2]
[339533934,1727681472052,-362.32799969,0.00014921,2]
[339533935,1727681472062,-1000.0,0.00014921,2]
[339533936,1727681472072,-1000.0,0.00014921,2]
[339533937,1727681472083,-500.0,0.00014933,2]
[339533938,1727681472092,-500.0,0.00014933,2]
[339533939,1727681472101,-500.0,0.00014933,2]
[339533940,1727681472113,-500.0,0.00014933,2]
[339533941,1727681472122,-500.0,0.00014933,2]
[339533942,1727681472131,-515.22253526,0.00014933,2]
[339533943,1727681472142,-500.0,0.00014933,2]
[339533944,1727681472152,-500.0,0.00014933,2]
[339533945,1727681472161,-500.0,0.00014933,2]
[339533946,1727681472170,-500.0,0.00014933,2]
[339533947,1727681472180,-541.0,0.00014934,2]
[339533948,1727681472190,-500.0,0.00014934,2]
[339533949,1727681472199,-500.0,0.00014934,2]
[339533950,1727681472209,-500.0,0.00014934,2]
[339533951,1727681472218,-500.0,0.00014934,2]
[339533952,1727681472228,-500.0,0.00014934,2]
[339533953,1727681472237,-500.0,0.00014934,2]
[339533954,1727681472247,-500.0,0.00014934,2]
[339533955,1727681472257,-606.96,0.00014934,2]
[339533956,1727681472266,-500.0,0.00014934,2]
[339533957,1727681472275,-500.0,0.00014934,2]
[339533958,1727681472285,-882.08,0.00014934,2]
[339533959,1727681472295,-619.22,0.00014934,2]
[339533960,1727681472304,-514.11133543,0.00014934,2]
[339533961,1727681472313,-681.32,0.00014934,2]
[339533962,1727681472323,-644.5,0.00014934,2]
[339533963,1727681472334,-500.0,0.00014934,2]
[339533964,1727681472343,-500.0,0.00014934,2]
[339533965,1727681472353,-532.54,0.00014934,2]
[339533966,1727681472364,-500.0,0.00014934,2]
[339533967,1727681472373,-2595.01,0.00014934,2]
[339533968,1727681472383,-500.0,0.00014934,2]
[339533969,1727681472393,-500.0,0.00014934,2]
[339533970,1727681472402,-500.0,0.00014934,2]
[339533971,1727681472411,-1069.08,0.00014934,2]
[339533972,1727681472421,-500.0,0.00014934,2]
[339533973,1727681472430,-1067.73,0.00014934,2]
[339533974,1727681472440,-500.0,0.00014934,2]
[339533975,1727681472449,-568.15935566,0.00014934,2]
[339533976,1727681472458,-500.0,0.00014934,2]
[339533977,1727681472468,-548.62,0.00014934,2]
[339533978,1727681472478,-500.0,0.00014934,2]
[339533979,1727681472487,-500.0,0.00014934,2]
[339533980,1727681472497,-500.0,0.00014934,2]
[339533981,1727681472507,-500.0,0.00014934,2]
[339533982,1727681472517,-500.0,0.00014934,2]
[339533983,1727681472527,-500.0,0.00014934,2]
[339533984,1727681472538,-268.43,0.00014934,2]
[339533985,1727681472548,-635.26383304,0.00014934,2]
[339533986,1727681472558,-500.0,0.00014934,2]
[339533987,1727681472569,-578.21,0.00014934,2]
[339533988,1727681472579,-500.0,0.00014934,2]
[339533989,1727681472588,-548.16,0.00014934,2]
[339533990,1727681472598,-500.0,0.00014934,2]
[339533991,1727681472610,-500.0,0.00014934,2]
[339533992,1727681472621,-491.08145722,0.00014934,2]
[339533993,1727681472631,-1777.39,0.00014934,2]
[339533994,1727681472640,-757.67,0.00014934,2]
[339533995,1727681472649,-500.0,0.00014934,2]
[339533996,1727681472658,-2008.58,0.00014934,2]
[339533997,1727681472667,-519.09,0.00014934,2]
[339533998,1727681472677,-152.71109472,0.00014934,2]
[339533999,1727681472686,-500.0,0.00014934,2]
[339534000,1727681472695,-634.32,0.00014934,2]
[339534001,1727681472705,-500.0,0.00014934,2]
[339534002,1727681472715,-500.0,0.00014934,2]
[339534003,1727681472725,-249.371505,0.00014934,2]
[339534004,1727681472735,-536.79,0.00014934,2]
[339534005,1727681472745,-500.0,0.00014934,2]
[339534006,1727681472754,-500.0,0.00014934,2]
[339534007,1727681472764,-249.371505,0.00014934,2]
[339534008,1727681472775,-500.0,0.00014934,2]
[339534009,1727681472784,-2433.54,0.00014934,2]
[339534010,1727681472794,-549.2,0.00014934,2]
[339534011,1727681472804,-29674.95,0.00014934,2]
[339534012,1727681472814,-500.0,0.00014934,2]
[339534013,1727681472823,-500.0,0.00014934,2]
[339534014,1727681472832,-1320.62,0.00014934,2]
[339534015,1727681472841,-4317.23,0.00014934,2]
[339534016,1727681472850,-980.355677,0.00014934,2]
[339534017,1727681472862,-500.0,0.00014934,2]
[339534018,1727681472871,-1640.88,0.00014934,2]
[339534019,1727681472885,-980.355677,0.00014934,2]
[339534020,1727681472895,-977.41,0.00014934,2]
[339534021,1727681472905,-659.94,0.00014934,2]
[339534022,1727681472915,-500.0,0.00014934,2]
[339534023,1727681472925,-151.0,0.00014934,2]
[339534024,1727681472935,-500.0,0.00014934,2]
[339534025,1727681472945,-151.0,0.00014934,2]
[339534026,1727681472956,-500.0,0.00014934,2]
[339534027,1727681472966,-166.02380798,0.00014934,2]
[339534028,1727681472976,-500.0,0.00014934,2]
[339534029,1727681472987,-500.0,0.00014934,2]
[339534030,1727681472997,-500.0,0.00014934,2]
[339534031,1727681473006,-542.53,0.00014934,2]
[339534032,1727681473017,-500.0,0.00014934,2]
[339534033,1727681473026,-500.0,0.00014934,2]
[339534034,1727681473036,-1804.61,0.00014934,2]
[339534035,1727681473047,-500.0,0.00014934,2]
[339534036,1727681473056,-1742.13,0.00014934,2]
[339534037,1727681473066,-500.0,0.00014934,2]
[339534038,1727681473076,-500.0,0.00014934,2]
[339534039,1727681473086,-500.0,0.00014934,2]
[339534040,1727681473095,-500.0,0.00014934,2]
[339534041,1727681473105,-500.0,0.00014934,2]
[339534042,1727681473115,-500.0,0.00014934,2]
[339534043,1727681473126,-500.0,0.00014934,2]
[339534044,1727681473135,-500.0,0.00014934,2]
[339534045,1727681473145,-680.83,0.00014934,2]
[339534046,1727681473155,-500.0,0.00014934,2]
[339534047,1727681473165,-720.74,0.00014934,2]
[339534048,1727681473175,-500.0,0.00014934,2]
[339534049,1727681473185,-654.13,0.00014934,2]
[339534050,1727681473195,-500.0,0.00014934,2]
[339534051,1727681473205,-500.0,0.00014934,2]
[339534052,1727681473214,-500.0,0.00014934,2]
[339534053,1727681473224,-500.0,0.00014934,2]
[339534054,1727681473233,-500.0,0.00014934,2]
[339534055,1727681473243,-666.8,0.00014934,2]
[339534056,1727681473252,-734.87,0.00014934,2]
[339534057,1727681473262,-500.0,0.00014934,2]
[339534058,1727681473271,-500.0,0.00014934,2]
[339534059,1727681473281,-500.0,0.00014934,2]
[339534060,1727681473290,-500.0,0.00014934,2]
[339534061,1727681473300,-500.0,0.00014934,2]
[339534062,1727681473309,-500.0,0.00014934,2]
[339534063,1727681473319,-500.0,0.00014934,2]
[339534064,1727681473328,-500.0,0.00014934,2]
[339534065,1727681473338,-562.16,0.00014934,2]
[339534066,1727681473347,-500.0,0.00014934,2]
[339534067,1727681473357,-500.0,0.00014934,2]
[339534068,1727681473367,-500.0,0.00014934,2]
[339534069,1727681473376,-672.32,0.00014934,2]
[339534070,1727681473385,-565.82,0.00014934,2]
[339534071,1727681473394,-500.0,0.00014934,2]
[339534072,1727681473404,-500.0,0.00014934,2]
[339534073,1727681473414,-521.7115837,0.00014934,2]
[339534074,1727681473424,-500.0,0.00014934,2]
[339534075,1727681473434,-653.83,0.00014934,2]
[339534076,1727681473444,-161.7819124,0.00014934,2]
[339534077,1727681473454,-500.0,0.00014934,2]
[339534078,1727681473464,-507.84054313,0.00014934,2]
[339534079,1727681473473,-500.0,0.00014934,2]
[339534080,1727681473483,-505.54388792,0.00014934,2]
[339534081,1727681473493,-500.0,0.00014934,2]
[339534082,1727681473502,-1317.96,0.00014934,2]
[339534083,1727681473511,-500.0,0.00014934,2]
[339534084,1727681473521,-500.0,0.00014934,2]
[339534085,1727681473531,-500.0,0.00014934,2]
[339534086,1727681473541,-500.0,0.00014934,2]
[339534087,1727681473551,-1520.4,0.00014934,2]
[339534088,1727681473561,-1061.16,0.00014934,2]
[339534089,1727681473570,-500.0,0.00014934,2]
[339534090,1727681473580,-500.0,0.00014934,2]
[339534091,1727681473590,-500.0,0.00014934,2]
[339534092,1727681473599,-1152.77,0.00014934,2]
[339534093,1727681473610,-500.0,0.00014934,2]
[339534094,1727681473620,-500.0,0.00014934,2]
[339534095,1727681473630,-616.83152426,0.00014934,2]
[339534096,1727681473640,-3977.0,0.00014934,2]
[339534097,1727681473651,-3805.25,0.00014934,2]
[339534098,1727681473660,-853.75,0.00014934,2]
[339534099,1727681473670,-500.0,0.00014934,2]
[339534100,1727681473680,-500.0,0.00014934,2]
[339534101,1727681473689,-500.0,0.00014934,2]
[339534102,1727681473698,-647.0,0.00014934,2]
[339534103,1727681473708,-2204.93,0.00014934,2]
[339534104,1727681473718,-853.17,0.00014934,2]
[339534105,1727681473728,-541.31,0.00014934,2]
[339534106,1727681473737,-1899.06,0.00014934,2]
[339534107,1727681473748,-500.0,0.00014934,2]
[339534108,1727681473758,-500.0,0.00014934,2]
[339534109,1727681473768,-674.09,0.00014934,2]
[339534110,1727681473778,-1040.57,0.00014934,2]
[339534111,1727681473787,-500.0,0.00014934,2]
[339534112,1727681473797,-752.66,0.00014944,2]
[339534113,1727681473807,-500.0,0.00014944,2]
[339534114,1727681473816,-251.47339405,0.00014944,2]
[339534115,1727681473826,-500.0,0.00014944,2]
[339534116,1727681473835,-557.72,0.00014944,2]
[339534117,1727681473844,-500.0,0.00014944,2]
[339534118,1727681473855,-790.78,0.00014944,2]
[339534119,1727681473865,-500.0,0.00014944,2]
[339534120,1727681473876,-500.0,0.00014944,2]
[339534121,1727681473887,-415.58613459,0.00014944,2]
[339534122,1727681474954,500.0,0.00014111,2]
[339534123,1727681474967,-500.0,0.00014112,2]
[339534124,1727681474976,-500.0,0.00014122,2]
[339534125,1727681474986,-500.0,0.00014396,2]
[339534126,1727681474996,-84.41386541,0.00014944,2]
[339534127,1727681475006,-500.0,0.00014944,2]
[339534128,1727681475015,-500.0,0.00014944,2]